bitfinex-derivatives/quotes_ETHF0:USTF0_20251001
["timestamp","ask_amount","ask_price","bid_price","bid_amount"]
[1759292552592,0.43381,4148.3,4148.0,0.1379]
[1759292552794,1.7239755,4148.7,4148.6,0.2092]
[1759292552997,0.247,4148.7,4148.6,0.7536]
[1759292553294,37.447,4148.7,4148.6,0.7536]
[1759292553692,37.20226471,4148.7,4148.6,0.7536]
[1759292553886,37.44926471,4148.7,4148.6,0.7536]
[1759292555198,37.20226471,4148.7,4148.6,0.7536]
[1759292555499,37.44926471,4148.7,4148.6,0.7536]
[1759292556591,37.20226471,4148.7,4148.6,0.7536]
[1759292556791,37.44926471,4148.7,4148.6,0.7536]
[1759292559202,37.20226471,4148.7,4148.6,0.7536]
[1759292559406,37.44926471,4148.7,4148.6,0.7536]
[1759292561603,37.44926471,4148.7,4148.6,0.5403]
[1759292563706,37.88302471,4148.7,4148.6,0.5403]
[1759292564199,37.88302471,4148.7,4148.6,0.3311]
[1759292564506,42.88302471,4148.7,4148.6,0.3311]
[1759292564702,43.38501373,4148.7,4148.6,0.3311]
[1759292569198,43.38501373,4148.7,4148.0,0.1379]
[1759292569199,0.43382,4148.1,4148.0,0.1379]
[1759292569510,0.43387,4147.6,4147.5,0.1379]
[1759292569705,1.5492087,4147.6,4147.5,0.1379]
[1759292570008,7.05119772,4147.6,4147.5,0.1379]
[1759292570207,44.25119772,4147.6,4147.5,0.1379]
[1759292571303,45.97828483,4147.6,4147.5,0.469]
[1759292572905,45.97826199,4147.6,4147.5,0.469]
[1759292573211,44.25117488,4147.6,4147.5,0.469]
[1759292573396,45.97826199,4147.6,4147.5,0.469]
[1759292573601,0.43398,4146.6,4146.5,0.5816]
[1759292573797,2.05128488,4146.6,4146.5,0.5816]
[1759292574002,2.05128488,4146.6,4146.5,0.3667]
[1759292574204,39.25128488,4146.6,4146.5,0.3667]
[1759292574910,39.25128488,4146.6,4146.5,0.5816]
[1759292575700,39.25128488,4146.6,4146.5,0.9001]
[1759292581315,39.25128488,4146.6,4146.5,0.4564]
[1759292585111,38.38194618,4146.6,4146.5,0.4564]
[1759292585309,40.3179863,4146.6,4146.5,0.4564]
[1759292586311,40.0719863,4146.6,4146.5,0.6852]
[1759292586510,38.13594618,4146.6,4146.5,0.9001]
[1759292586716,37.70196618,4146.6,4146.5,5.9001]
[1759292586917,37.446,4146.6,4146.5,5.9001]
[1759292590014,37.93945114,4146.6,4146.5,5.9001]
[1759292594422,38.37343114,4146.6,4146.5,5.9001]
[1759292594626,38.37343114,4146.6,4146.5,6.33409]
[1759292595126,37.69345114,4146.6,4146.5,1.33409]
[1759292595322,38.37343114,4146.6,4146.5,1.33409]
[1759292595925,37.69345114,4146.6,4146.5,6.33409]
[1759292596119,38.37343114,4146.6,4146.5,6.33409]
[1759292597122,37.93945114,4146.6,4146.5,6.33409]
[1759292597617,37.69345114,4146.6,4146.5,6.33409]
[1759292598516,0.49345114,4146.6,4146.5,6.33409]
[1759292605731,0.246,4146.8,4146.7,0.85467]
[1759292605932,0.73797741,4146.8,4146.7,1.18247]
[1759292607635,0.246,4146.8,4146.7,1.18247]
[1759292610937,1.72708711,4148.0,4147.4,0.43389]
[1759292611137,1.72708711,4148.2,4148.0,0.1315]
[1759292611337,0.67882,4148.1,4148.0,0.4593]
[1759292611532,37.87882,4148.1,4148.0,0.4593]
[1759292611735,44.60590711,4148.1,4148.0,0.4593]
[1759292612136,42.87882,4148.1,4148.0,0.4593]
[1759292613439,44.60590711,4148.1,4148.0,0.4593]
[1759292614348,0.43387,4147.6,4147.5,0.1315]
[1759292614648,1.68430025,4147.6,4147.5,0.1315]
[1759292614849,6.68430025,4147.6,4147.5,0.1315]
[1759292616339,6.68430025,4147.6,4147.5,0.4593]
[1759292616539,43.88430025,4147.6,4147.5,0.4593]
[1759292617342,43.88430025,4147.6,4147.5,0.6696]
[1759292619544,38.88430025,4147.6,4147.5,0.6696]
[1759292625452,38.88430025,4147.6,4147.5,0.4593]
[1759292625759,38.63930025,4147.6,4147.5,0.6696]
[1759292626056,38.88430025,4147.6,4147.5,0.6696]
[1759292627959,0.43387,4147.6,4147.5,0.88]
[1759292628160,0.43384,4148.0,4147.8,0.4207]
[1759292628364,2.16608783,4148.2,4148.1,0.7485]
[1759292628657,37.87882,4148.2,4148.1,0.7485]
[1759292628853,37.2,4148.2,4148.1,0.7485]
[1759292629054,37.445,4148.2,4148.1,0.7485]
[1759292629255,37.2,4148.2,4148.1,0.7485]
[1759292629460,0.00226471,4148.7,4148.6,0.7485]
[1759292629759,0.24726471,4148.7,4148.6,0.7485]
[1759292630552,37.34726471,4148.7,4148.6,0.7485]
[1759292632354,37.34726471,4148.7,4148.6,0.5381]
[1759292633853,37.34726471,4148.7,4148.6,0.7573]
[1759292639871,37.78102471,4148.7,4148.6,0.7573]
[1759292640168,37.53602471,4148.7,4148.6,0.7573]
[1759292640466,37.78102471,4148.7,4148.6,0.7573]
[1759292645171,37.10226471,4148.7,4148.6,1.19107]
[1759292646271,37.53602471,4148.7,4148.6,1.19107]
[1759292646968,37.53602471,4148.7,4148.6,0.7573]
[1759292647169,37.53602471,4148.7,4148.6,1.19107]
[1759292647568,37.10226471,4148.7,4148.6,1.19107]
[1759292648071,37.53602471,4148.7,4148.6,1.19107]
[1759292649072,37.10226471,4148.7,4148.6,1.19107]
[1759292649970,3.86823496,4150.2,4149.6,0.3109]
[1759292650273,1.30124385,4150.2,4150.1,0.3109]
[1759292650466,1.54624385,4150.2,4150.1,0.3109]
[1759292650975,38.64793292,4150.2,4150.1,0.31313017]
[1759292655877,38.64793292,4150.2,4150.1,0.53973017]
[1759292656175,38.64793292,4150.2,4150.1,0.31313017]
[1759292658373,40.38020075,4150.2,4150.1,0.31313017]
[1759292659878,40.13520075,4150.2,4150.1,0.74673017]
[1759292660074,40.37863882,4150.2,4150.1,0.74673017]
[1759292661878,39.26599497,4150.2,4150.1,0.74673017]
[1759292662479,39.51099497,4150.2,4150.1,0.74673017]
[1759292662876,37.78028907,4150.2,4150.1,0.74673017]
[1759292666881,38.64793292,4150.2,4150.1,0.74673017]
[1759292668983,38.40293292,4150.2,4150.1,0.74673017]
[1759292669286,38.64793292,4150.2,4150.1,0.74673017]
[1759292669584,37.78028907,4150.2,4150.1,0.74673017]
[1759292676279,37.78028907,4150.2,4150.1,1.18034017]
[1759292676280,37.10168907,4150.2,4150.1,1.18034017]
[1759292676479,0.43356,4150.6,4150.5,1.09097]
[1759292676783,0.67756,4150.6,4150.5,1.30577]
[1759292676993,37.1,4150.6,4150.5,1.30577]
[1759292677188,37.1,4150.6,4150.5,6.30577]
[1759292677589,37.10269843,4150.6,4150.5,6.30577]
[1759292677979,0.00269843,4150.6,4150.5,6.30577]
[1759292678583,37.10269843,4150.6,4150.5,6.30577]
[1759292679190,0.00269843,4150.6,4150.5,6.30577]
[1759292679492,0.00269843,4150.6,4150.5,1.30577]
[1759292690392,0.43625843,4150.6,4150.5,0.8722]
[1759292690704,0.00269843,4150.6,4150.5,1.30577]
[1759292690998,0.43625843,4150.6,4150.5,1.30577]
[1759292691189,0.43625843,4150.6,4150.5,0.8722]
[1759292697797,5.43625843,4150.6,4150.5,0.4439]
[1759292698403,42.53625843,4150.6,4150.5,0.4439]
[1759292701608,42.57820835,4150.6,4150.5,0.4439]
[1759292702501,0.4336,4150.2,4150.1,0.44783017]
[1759292702703,1.54524385,4150.2,4150.1,0.22743017]
[1759292703906,1.54524385,4150.2,4150.1,0.00223017]
[1759292704607,1.54524385,4150.2,4150.1,0.34493017]
[1759292705902,1.54524385,4150.2,4150.1,0.57013017]
[1759292708207,1.54524385,4150.2,4150.1,0.79053017]
[1759292708808,0.4336,4150.2,4150.1,0.79053017]
[1759292709003,37.53625843,4150.6,4150.5,0.9214]
[1759292709208,37.78025843,4150.6,4150.5,0.9214]
[1759292709609,37.34669843,4150.6,4150.5,0.9214]
[1759292710614,37.10269843,4150.6,4150.5,0.9214]
[1759292710819,0.43353,4150.9,4150.8,0.7883]
[1759292711016,0.43353,4150.9,4150.8,1.65594385]
[1759292711517,0.43353,4150.9,4150.8,0.7883]
[1759292711912,37.13606562,4150.9,4150.8,0.7883]
[1759292716817,37.38006562,4150.9,4150.8,0.7883]
[1759292719314,37.13606562,4150.9,4150.8,0.7883]
[1759292719522,37.38006562,4150.9,4150.8,0.7883]
[1759292719817,36.70253562,4150.9,4150.8,1.22184]
[1759292720022,0.24653562,4150.9,4150.8,1.22184]
[1759292721322,0.00253562,4150.9,4150.8,1.22184]
[1759292721522,36.7,4151.6,4151.5,1.34697]
[1759292721717,36.7,4151.6,4151.5,2.35033863]
[1759292722024,36.7,4151.6,4151.5,1.91686863]
[1759292722613,0.00191688,4151.6,4151.5,0.9135]
[1759292722816,0.24591688,4151.6,4151.5,0.9135]
[1759292728329,0.43351,4151.1,4151.0,0.5494]
[1759292728521,0.67751,4151.1,4151.0,0.5494]
[1759292730318,0.43356,4150.6,4150.5,0.4521]
[1759292730529,0.67756,4150.6,4150.5,0.6605]
[1759292730726,0.43356,4150.6,4150.5,0.8755]
[1759292731031,37.37756,4150.6,4150.5,0.8755]
[1759292731219,1.08394,4150.5,4150.1,0.00223017]
[1759292731421,1.113,4150.2,4150.1,0.00223017]
[1759292731626,1.357,4150.2,4150.1,0.00223017]
[1759292732022,0.43367,4149.6,4149.5,0.5511]
[1759292732326,0.67767,4149.6,4149.5,0.5511]
[1759292733133,0.67767,4149.6,4149.5,0.55299016]
[1759292733323,0.67767,4149.6,4149.5,0.87199016]
[1759292734030,0.43367,4149.6,4149.5,0.87199016]
[1759292734929,0.90277,4150.5,4150.4,0.7424]
[1759292735134,1.11447,4150.5,4150.4,0.7424]
[1759292737226,1.08396,4150.4,4149.5,0.12959016]
[1759292737427,0.5576,4149.6,4149.5,0.55299016]
[1759292737730,0.2252,4149.6,4149.5,0.55299016]
[1759292737933,0.43366,4149.7,4149.5,0.55299016]
[1759292738231,0.43366,4149.7,4149.5,0.98666016]
[1759292738425,0.43366,4149.7,4149.5,0.55299016]
[1759292738733,0.76606,4149.7,4149.5,0.98666016]
[1759292739032,0.43366,4149.7,4149.5,0.98666016]
[1759292739224,0.43366,4149.7,4149.6,0.319]
[1759292739425,0.43366,4149.7,4149.6,0.7424]
[1759292740127,0.2252,4149.8,4149.7,1.17606]
[1759292740328,0.43361,4150.1,4150.0,0.43362]
[1759292740529,0.43361,4150.1,4150.0,0.8701]
[1759292744128,0.9028,4150.3,4150.2,0.2084]
[1759292744328,0.9028,4150.3,4150.2,0.7424]
[1759292744531,0.9912,4150.3,4150.2,0.7424]
[1759292744837,1.4469,4150.3,4150.2,0.4234]
[1759292746743,1.20296,4149.7,4149.6,0.7424]
[1759292746939,0.99126,4149.7,4149.6,0.7424]
[1759292747340,0.99126,4149.7,4149.6,1.17607]
[1759292747840,0.3324,4150.0,4149.8,0.43364]
[1759292748139,0.99122,4150.0,4149.9,0.7424]
[1759292748346,1.23522,4150.0,4149.9,0.7424]
[1759292748537,0.99122,4150.0,4149.9,0.7424]
[1759292748844,0.99122,4150.0,4149.9,1.17603]
[1759292749447,0.99122,4150.0,4149.9,0.7424]
[1759292749743,0.99122,4150.0,4149.9,1.17603]
[1759292749943,0.5576,4150.0,4149.9,1.17603]
[1759292750143,0.99122,4150.0,4149.9,1.17603]
[1759292751346,1.32932,4150.0,4149.9,0.5274]
[1759292751540,1.32932,4150.0,4149.9,1.17603]
[1759292753043,1.32932,4150.0,4149.9,0.7424]
[1759292753246,1.32932,4150.0,4149.9,0.2084]
[1759292753543,1.32932,4150.0,4149.9,0.64203]
[1759292753746,1.32932,4150.0,4149.9,1.19823]
[1759292753945,1.32932,4150.0,4149.9,0.4372]
[1759292754342,1.32932,4150.0,4149.9,1.19823]
[1759292754545,1.32932,4150.0,4149.9,0.7646]
[1759292754738,1.32932,4150.0,4149.9,2.20159863]
[1759292754739,0.7693,4150.0,4149.9,2.20159863]
[1759292754941,0.5264,4150.5,4150.4,0.455]
[1759292755141,0.5264,4150.5,4150.4,1.89193863]
[1759292755336,0.95997,4150.5,4150.4,1.89193863]
[1759292755546,0.95997,4150.5,4150.4,2.21933863]
[1759292755750,0.5264,4150.5,4150.4,2.21933863]
[1759292756049,0.95997,4150.5,4150.4,2.21933863]
[1759292758742,0.5753,4150.5,4149.8,0.97465705]
[1759292758947,0.44,4149.6,4149.5,0.55549016]
[1759292759148,0.9998,4149.6,4149.5,0.22809016]
[1759292760449,37.6998,4149.6,4149.5,0.22809016]
[1759292760748,37.6998,4149.6,4149.5,0.00189016]
[1759292761343,37.6998,4149.6,4149.5,0.78429016]
[1759292762451,37.6998,4149.6,4149.5,1.21797016]
[1759292762652,37.6998,4149.6,4149.5,0.78429016]
[1759292763248,37.6998,4149.6,4149.5,0.22809016]
[1759292763449,37.6998,4149.6,4149.5,0.00189016]
[1759292764741,37.4558,4149.6,4149.5,0.00189016]
[1759292764940,37.6998,4149.6,4149.5,0.00189016]
[1759292769260,37.4558,4149.6,4149.5,0.78429016]
[1759292769450,0.44,4150.0,4149.9,1.21603]
[1759292769648,0.2106,4150.0,4149.9,2.21939863]
[1759292769853,36.9106,4150.0,4149.9,2.21939863]
[1759292770059,37.2264,4150.0,4149.9,1.78576863]
[1759292770355,37.4558,4150.0,4149.9,1.78576863]
[1759292770743,37.5911,4150.0,4149.9,1.78576863]
[1759292772352,37.5911,4150.0,4149.9,1.64983707]
[1759292772553,37.2264,4150.0,4149.9,2.08346707]
[1759292772950,37.4558,4150.0,4149.9,2.08346707]
[1759292774254,37.5911,4150.0,4149.9,2.08346707]
[1759292774855,0.8911,4150.0,4149.9,2.08346707]
[1759292775055,1.32472,4150.0,4149.9,2.08346707]
[1759292775653,0.8911,4150.0,4149.9,2.08346707]
[1759292776070,1.32472,4150.0,4149.9,2.08346707]
[1759292776567,1.56872,4150.0,4149.9,2.08346707]
[1759292778567,1.21517,4149.6,4149.5,0.00189016]
[1759292778761,0.7815,4149.6,4149.5,2.05610723]
[1759292779265,0.7815,4149.6,4149.5,2.18130723]
[1759292781274,1.21517,4149.6,4149.5,0.86932723]
[1759292781475,1.21517,4149.6,4149.5,1.30300723]
[1759292781870,0.7815,4149.6,4149.5,1.51890723]
[1759292782070,0.7815,4149.6,4149.5,1.84150723]
[1759292782273,0.7815,4149.6,4149.5,2.05610723]
[1759292783071,0.5582,4149.6,4149.5,2.18130723]
[1759292783871,0.1353,4150.0,4149.5,2.18130723]
[1759292784077,37.2514,4150.1,4150.0,0.88782]
[1759292784373,37.2514,4150.1,4150.0,1.21152]
[1759292784574,37.4679,4150.1,4150.0,1.21152]
[1759292785169,37.90151,4150.1,4150.0,1.21152]
[1759292785470,37.4679,4150.1,4150.0,1.21152]
[1759292786172,37.90151,4150.1,4150.0,1.21152]
[1759292786765,0.65532,4150.0,4149.9,0.86743707]
[1759292786970,1.33812,4150.0,4149.9,0.86743707]
[1759292788672,1.33812,4150.0,4149.6,0.86743707]
[1759292788673,0.87186,4149.7,4149.6,0.86743707]
[1759292788973,1.20156,4149.7,4149.6,1.52840707]
[1759292790975,0.7679,4149.7,4149.6,1.52840707]
[1759292791173,0.5514,4150.0,4149.9,0.66093]
[1759292791479,0.5514,4150.0,4149.9,2.07896707]
[1759292791776,0.7679,4150.0,4149.9,2.07896707]
[1759292794881,1.20152,4150.0,4149.9,2.07896707]
[1759292795775,1.33812,4150.0,4149.9,1.32163707]
[1759292795981,1.33812,4150.0,4149.9,1.09473707]
[1759292796178,1.33812,4150.0,4149.9,1.52836707]
[1759292796783,1.33812,4150.0,4149.9,1.09473707]
[1759292798178,1.58212,4150.0,4149.9,1.09473707]
[1759292799888,1.20156,4149.7,4149.6,0.64819415]
[1759292800083,1.20156,4149.7,4149.6,0.43366]
[1759292800586,1.20157,4149.6,4149.5,0.00189016]
[1759292800777,1.44557,4149.6,4149.5,0.00189016]
[1759292801888,1.20157,4149.6,4149.5,0.22919016]
[1759292802192,1.44557,4149.6,4149.5,1.21347016]
[1759292802686,0.7679,4149.6,4149.5,1.21347016]
[1759292802895,1.44557,4149.6,4149.5,0.77979016]
[1759292803188,1.44557,4149.6,4149.5,1.21347016]
[1759292803789,0.7679,4149.6,4149.5,1.21347016]
[1759292803991,0.98504,4149.8,4149.7,1.21156]
[1759292804183,1.44554,4149.8,4149.7,1.21156]
[1759292804378,1.44554,4149.8,4149.7,0.7779]
[1759292805288,1.44554,4149.8,4149.7,1.21156]
[1759292805791,1.44554,4149.8,4149.7,0.7779]
[1759292806590,1.44554,4149.8,4149.7,0.2273]
[1759292806894,1.20157,4149.6,4149.5,0.00189016]
[1759292807293,1.20157,4149.6,4149.5,0.22919016]
[1759292808191,1.20157,4149.6,4149.5,0.00189016]
[1759292808890,1.20157,4149.6,4149.5,0.43557016]
[1759292809291,1.20157,4149.6,4149.5,0.66287016]
[1759292810102,1.20157,4149.6,4149.5,0.22919016]
[1759292810487,1.20157,4149.6,4149.5,0.00189016]
[1759292811079,1.20157,4149.6,4149.5,0.43557016]
[1759292811492,1.20157,4149.6,4149.5,0.66287016]
[1759292811795,1.20157,4149.6,4149.5,0.00189016]
[1759292820502,1.44557,4149.6,4149.5,0.00189016]
[1759292822295,6.44557,4149.6,4149.5,0.00189016]
[1759292822497,0.88416,4148.7,4148.6,0.43377]
[1759292822701,1.19606,4148.7,4148.6,0.43377]
[1759292822900,0.7623,4148.7,4148.6,0.65317]
[1759292823099,0.7623,4148.7,4148.6,0.98917]
[1759292823496,0.7623,4148.7,4148.6,0.9921694]
[1759292823896,0.7623,4148.7,4148.6,0.6561694]
[1759292824101,1.19606,4148.7,4148.6,0.0029994]
[1759292824704,37.89606,4148.7,4148.6,0.0029994]
[1759292827607,38.14006,4148.7,4148.6,0.0029994]
[1759292829618,39.00749707,4148.7,4148.6,0.0029994]
[1759292832319,38.14006,4148.7,4148.6,0.0029994]
[1759292840725,37.89606,4148.7,4148.6,0.0029994]
[1759292840917,37.89606,4148.7,4148.6,1.75747737]
[1759292841123,38.14006,4148.7,4148.6,0.7526994]
[1759292841433,38.14006,4148.7,4148.6,0.2117994]
[1759292843432,38.14006,4148.7,4148.6,0.5494994]
[1759292843731,38.14006,4148.7,4148.6,0.2117994]
[1759292845224,38.14006,4148.7,4148.6,0.0029994]
[1759292850623,37.89606,4148.7,4148.6,0.0029994]
[1759292850827,38.14006,4148.7,4148.6,0.0029994]
[1759292852237,37.7063,4148.7,4147.8,0.98589415]
[1759292852536,0.3143,4147.7,4147.6,0.64819415]
[1759292852836,1.42846,4147.7,4147.6,1.20559415]
[1759292853437,1.43024606,4147.7,4147.6,0.87062152]
[1759292853636,1.43024606,4147.7,4147.6,0.65092152]
[1759292853836,1.43024606,4147.7,4147.6,0.00272737]
[1759292855939,38.13024606,4147.7,4147.6,0.00272737]
[1759292865437,37.88624606,4147.7,4147.6,0.22242737]
[1759292865644,38.13024606,4147.7,4147.6,0.76702737]
[1759292866236,38.13024606,4147.7,4147.6,0.00272737]
[1759292867739,38.13024606,4147.7,4147.6,0.22242737]
[1759292868744,0.67964606,4147.7,4147.6,6.77180534]
[1759292869343,0.43564606,4147.7,4147.6,7.20567534]
[1759292869951,0.00178606,4147.7,4147.6,7.20567534]
[1759292870547,0.43564606,4147.7,4147.6,7.20567534]
[1759292870747,0.00178606,4147.7,4147.6,7.20567534]
[1759292873143,0.00178606,4147.7,4147.6,6.98597534]
[1759292873449,37.88574606,4147.7,4147.6,0.76012737]
[1759292873749,37.88574606,4147.7,4147.6,1.19399737]
[1759292874048,1.18574606,4147.7,4147.6,1.19399737]
[1759292877645,1.18574606,4147.7,4147.6,0.76012737]
[1759292878554,0.75188606,4147.7,4147.6,1.19399737]
[1759292878847,1.18574606,4147.7,4147.6,1.19399737]
[1759292879854,1.42974606,4147.7,4147.6,1.19399737]
[1759292880355,1.42974606,4147.7,4147.6,0.76012737]
[1759292880948,1.42974606,4147.7,4147.6,1.19399737]
[1759292881248,1.42974606,4147.7,4147.6,0.76012737]
[1759292882550,1.42974606,4147.7,4147.6,0.00272737]
[1759292891459,1.42974606,4147.7,4147.6,0.76012737]
[1759292891754,0.99588606,4147.7,4147.6,0.76012737]
[1759292891953,0.00178606,4147.7,4147.6,1.19398737]
[1759292892161,0.00178606,4147.7,4147.6,6.19398737]
[1759292892356,0.3146,4148.3,4148.2,1.1912]
[1759292892557,37.1836,4148.3,4148.2,1.1912]
[1759292892957,37.4076,4148.3,4148.2,1.1912]
[1759292893356,37.40943055,4148.3,4148.2,1.1912]
[1759292894362,37.40943055,4148.3,4148.2,2.05933249]
[1759292895163,0.00183055,4148.3,4148.2,2.05933249]
[1759292896065,0.54043055,4148.3,4148.2,2.05933249]
[1759292897260,0.00183055,4148.3,4148.2,2.05933249]
[1759292898661,0.56973055,4148.3,4148.2,2.05933249]
[1759292901359,0.00183055,4148.3,4148.2,2.05933249]
[1759292901566,0.34573055,4148.3,4148.2,2.05933249]
[1759292903264,0.56913055,4148.3,4148.2,2.05933249]
[1759292903869,0.00183055,4148.3,4148.2,2.05933249]
[1759292904663,0.31683055,4148.3,4148.2,2.05933249]
[1759292905270,0.00183055,4148.3,4148.2,2.05933249]
[1759292907467,0.52973055,4148.3,4148.2,2.05933249]
[1759292907669,0.74923055,4148.3,4148.2,2.05933249]
[1759292909477,0.99323055,4148.3,4148.2,0.6422]
[1759292910079,1.42702055,4148.3,4148.2,0.6422]
[1759292910579,0.99323055,4148.3,4148.2,0.6422]
[1759292910774,0.99323055,4148.3,4148.2,0.9852]
[1759292910992,0.99323055,4148.3,4148.2,1.1966]
[1759292914190,1.42702055,4148.3,4148.2,1.1966]
[1759292914498,0.99323055,4148.3,4148.2,1.1966]
[1759292917885,0.99323055,4148.3,4148.2,0.4338]
[1759292919296,1.42702055,4148.3,4148.2,0.4338]
[1759292919702,0.884,4148.0,4147.9,0.65664]
[1759292919892,1.128,4148.0,4147.9,0.99964]
[1759292920092,1.128,4148.0,4147.9,0.43384]
[1759292920600,1.128,4148.0,4147.9,0.65664]
[1759292920899,0.7719,4148.0,4147.9,1.21104]
[1759292921304,0.7719,4148.0,4147.9,1.8596652]
[1759292922394,0.00183055,4148.3,4148.2,0.868]
[1759292922600,1.42702055,4148.3,4148.2,0.7772]
[1759292923296,1.42702055,4148.3,4148.2,1.21101]
[1759292924805,1.42702055,4148.3,4148.2,0.7772]
[1759292926001,1.42702055,4148.3,4148.2,1.21101]
[1759292927301,0.99323055,4148.3,4148.2,1.21101]
[1759292927499,0.74923055,4148.3,4148.2,1.21101]
[1759292928099,1.18302055,4148.3,4148.2,1.21101]
[1759292928503,0.74923055,4148.3,4148.2,1.21101]
[1759292929306,1.18302055,4148.3,4148.2,0.7772]
[1759292929906,1.18302055,4148.3,4148.2,1.211]
[1759292930708,0.21473055,4148.3,4148.2,1.211]
[1759292931206,0.52973055,4148.3,4148.2,1.211]
[1759292937108,0.75053055,4148.3,4148.2,1.211]
[1759292940207,0.00183055,4148.3,4148.2,1.211]
[1759292941012,0.31573055,4148.3,4148.2,1.211]
[1759292941204,0.31573055,4148.3,4148.2,1.85862155]
[1759292941404,0.00183055,4148.3,4148.2,1.85862155]
[1759292941605,0.00183055,4148.3,4148.2,1.211]
[1759292943108,0.54443055,4148.3,4148.2,1.211]
[1759292944921,0.76523055,4148.3,4148.2,1.51579967]
[1759292945122,0.76523055,4148.3,4148.2,1.82789967]
[1759292947119,0.00183055,4148.3,4148.2,1.1801]
[1759292948322,0.00183055,4148.3,4148.2,1.4241]
[1759292948619,0.4495,4149.5,4149.4,1.17508]
[1759292948817,0.4495,4149.5,4149.4,2.04321249]
[1759292949010,37.0634,4149.5,4149.4,2.04321249]
[1759292949219,37.3074,4149.5,4149.4,2.04321249]
[1759292949407,37.31047051,4149.5,4149.4,2.04321249]
[1759292949611,1.01047051,4149.5,4149.4,2.04321249]
[1759292950014,0.76647051,4149.5,4149.4,2.04321249]
[1759292950221,0.00307051,4149.5,4149.4,2.04321249]
[1759292950611,0.00307051,4149.5,4149.4,2.69056029]
[1759292950817,0.2287,4150.4,4150.3,0.4293]
[1759292951016,0.6416,4150.4,4150.3,0.7414]
[1759292951217,37.1624,4150.4,4150.3,0.7414]
[1759292951922,37.16457455,4150.4,4150.3,1.17499]
[1759292952326,37.30957455,4150.4,4150.3,1.17499]
[1759292953025,37.06557455,4150.4,4150.3,1.17499]
[1759292953225,37.30957455,4150.4,4150.3,1.17499]
[1759292953428,0.54477455,4150.4,4150.3,1.17499]
[1759292956125,0.00217455,4150.4,4150.3,1.17499]
[1759292956724,0.31607455,4150.4,4150.3,1.17499]
[1759292956920,0.54477455,4150.4,4150.3,1.17499]
[1759292957730,0.76557455,4150.4,4150.3,1.17499]
[1759292959029,0.76557455,4150.4,4150.3,0.43359]
[1759292959827,0.76557455,4150.4,4150.3,0.66199]
[1759292961833,0.00217455,4150.4,4150.3,1.19779]
[1759292962232,0.00217455,4150.4,4150.3,6.44079]
[1759292963633,0.00217455,4150.4,4150.3,1.44079]
[1759292970734,0.00217455,4150.4,4150.3,6.44079]
[1759292971647,36.3,4151.0,4150.9,1.19563]
[1759292971944,36.8581,4151.0,4150.9,1.19563]
[1759292972544,36.86089923,4151.0,4150.9,1.19814646]
[1759292973140,37.08689923,4151.0,4150.9,1.19814646]
[1759292973346,37.21809923,4151.0,4150.9,1.19814646]
[1759292973846,0.91809923,4151.0,4150.9,1.19814646]
[1759292974148,0.78689923,4151.0,4150.9,1.19814646]
[1759292978249,0.56089923,4151.0,4150.9,1.19814646]
[1759292978451,0.00279923,4151.0,4150.9,1.19814646]
[1759292979257,0.00279923,4151.0,4150.9,1.84431411]
[1759292979466,0.00279923,4151.0,4150.9,1.19814646]
[1759292979752,0.3331,4151.4,4151.0,1.51732]
[1759292979964,0.8731,4151.9,4151.8,1.19553]
[1759292980459,37.1731,4151.9,4151.8,1.19553]
[1759292980859,37.1753156,4151.9,4151.8,1.19553]
[1759292981053,37.0863156,4151.9,4151.8,1.19553]
[1759292981254,37.3293156,4151.9,4151.8,1.19553]
[1759292981958,37.3293156,4151.9,4151.8,0.7621]
[1759292982954,37.3293156,4151.9,4151.8,0.4396]
[1759292983160,37.3293156,4151.9,4151.8,0.7621]
[1759292983957,37.0863156,4151.9,4151.8,0.7621]
[1759292986964,0.0022156,4151.9,4151.8,0.7621]
[1759292989367,0.0022156,4151.9,4151.8,1.62365687]
[1759292990260,0.0022156,4151.9,4151.8,0.7621]
[1759292993265,0.0022156,4151.9,4151.8,1.40642316]
[1759292993971,0.0022156,4151.9,4151.8,1.4064227]
[1759292994269,0.5443156,4151.9,4151.8,0.7621]
[1759292994466,0.7625156,4151.9,4151.8,0.7621]
[1759292995669,0.5443156,4151.9,4151.8,0.7621]
[1759292995966,0.7625156,4151.9,4151.8,1.19553]
[1759292997064,0.0022156,4151.9,4151.8,1.83978687]
[1759292998369,0.5421,4152.5,4152.1,1.0835]
[1759292998566,0.3207,4152.5,4152.4,2.21118961]
[1759292998762,0.3207,4152.5,4152.4,2.45418961]
[1759292998961,36.8421,4152.5,4152.4,2.45418961]
[1759292999163,0.5421,4152.5,4152.4,2.45418961]
[1759292999462,0.00213527,4152.5,4152.4,2.45418961]
[1759293000970,0.76243527,4152.5,4152.4,2.45418961]
[1759293001863,0.88723527,4152.5,4152.4,2.45418961]
[1759293004268,0.00213527,4152.5,4152.4,2.45418961]
[1759293004662,36.3,4152.8,4152.7,1.20764]
[1759293004867,36.3,4152.8,4152.7,1.45064]
[1759293005273,0.022,4152.9,4152.8,0.43333]
[1759293005468,0.022,4152.9,4152.8,2.21114961]
[1759293005774,0.02444322,4152.9,4152.8,2.21114961]
[1759293006470,0.02444322,4152.9,4152.8,1.20763]
[1759293006859,36.6207,4153.4,4153.3,0.43328]
[1759293007058,0.7603,4153.9,4153.8,1.20751]
[1759293008067,37.06265558,4153.9,4153.8,1.20751]
[1759293008267,0.76265558,4153.9,4153.8,1.20751]
[1759293011065,0.3207,4154.2,4154.1,0.43319]
[1759293011282,0.3207,4154.7,4154.6,0.43314]
[1759293011468,0.5421,4154.7,4154.6,2.21095961]
[1759293011869,37.0603,4154.7,4154.6,2.21095961]
[1759293012070,37.0620655,4154.7,4154.6,2.21305784]
[1759293012576,37.0620655,4154.7,4154.6,1.22401784]
[1759293012774,37.0620655,4154.7,4154.6,1.00561784]
[1759293012977,37.0620655,4154.7,4154.6,0.54709823]
[1759293013170,37.0620655,4154.7,4154.6,0.22049823]
[1759293013369,37.0620655,4154.7,4154.6,0.00209823]
[1759293013873,42.3050655,4154.7,4154.6,0.00209823]
[1759293016370,42.3050655,4154.7,4154.6,1.08604676]
[1759293016371,37.3050655,4154.7,4154.6,1.08604676]
[1759293016579,0.7620655,4154.7,4154.6,1.64194676]